bitfinex-derivatives/quotes_SOLF0:USTF0_20251202
["timestamp","ask_amount","ask_price","bid_price","bid_amount"]
[1764642720678,3.33084321,127.84,127.82,3.28146725]
[1764642720881,3.33084321,127.84,127.82,0.05146725]
[1764642722986,12.1997136,127.83,127.82,0.05146725]
[1764642723879,3.28,127.81,127.77,7.0443]
[1764642724088,3.28,127.79,127.75,3.23]
[1764642724383,3.28,127.81,127.78,10.2736]
[1764642724583,3.28,127.79,127.75,3.23]
[1764642724784,3.28,127.82,127.75,3.23]
[1764642724981,0.05777735,127.8,127.78,3.23]
[1764642725182,0.05777735,127.8,127.78,3.28881086]
[1764642727479,0.05777735,127.8,127.79,3.23]
[1764642727986,3.33777735,127.8,127.78,7.10221086]
[1764642728283,0.05777735,127.8,127.78,10.33221086]
[1764642728785,3.38777735,127.8,127.78,7.10221086]
[1764642729781,3.38777735,127.8,127.78,10.26221086]
[1764642729986,3.38777735,127.8,127.78,7.10221086]
[1764642730387,12.27737195,127.79,127.78,0.05881086]
[1764642730590,8.94737195,127.79,127.78,0.05881086]
[1764642730785,12.27737195,127.79,127.78,0.05881086]
[1764642732196,6.36389968,127.79,127.78,0.05881086]
[1764642732587,12.27581641,127.79,127.78,0.05881086]
[1764642734787,12.27360686,127.79,127.78,0.05881086]
[1764642736204,3.33,127.78,127.7,3.16]
[1764642736403,3.33,127.76,127.7,112.7972]
[1764642736704,3.33,127.76,127.72,3.16]
[1764642737088,0.05064963,127.75,127.73,0.05892163]
[1764642737494,3.38064963,127.75,127.73,0.05892163]
[1764642739104,12.26182412,127.74,127.73,0.05892163]
[1764642739300,3.33,127.73,127.69,3.16]
[1764642739798,3.33,127.73,127.68,77.3692]
[1764642740395,3.38433343,127.72,127.69,0.05296851]
[1764642740805,3.38433343,127.72,127.69,3.21296851]
[1764642745202,0.05433343,127.72,127.7,3.16]
[1764642746310,3.38433343,127.72,127.7,10.208]
[1764642747410,3.38433343,127.72,127.7,7.048]
[1764642750202,3.38433343,127.72,127.69,0.05296851]
[1764642751303,7.0478,127.71,127.69,0.05296851]
[1764642751503,3.33,127.7,127.69,0.05296851]
[1764642752412,3.33,127.69,127.64,12.5378386]
[1764642752710,3.33,127.69,127.64,3.16]
[1764642752909,10.379,127.69,127.64,3.16]
[1764642753119,3.33,127.68,127.64,3.16]
[1764642753308,5.6567386,127.68,127.61,3.16]
[1764642753502,3.38917253,127.67,127.64,0.05212723]
[1764642753706,3.33,127.66,127.64,0.05212723]
[1764642754611,0.05917253,127.67,127.64,3.43212723]
[1764642754813,3.16917253,127.67,127.64,3.43212723]
[1764642755113,0.05917253,127.67,127.65,3.38]
[1764642755810,0.05917253,127.67,127.65,10.4305]
[1764642756012,0.05917253,127.67,127.66,3.38]
[1764642757913,0.05917253,127.67,127.65,3.38]
[1764642759426,3.24,127.73,127.67,3.15]
[1764642759612,3.12221926,127.72,127.67,3.15]
[1764642759926,3.12221926,127.71,127.68,3.15]
[1764642760224,3.24,127.73,127.68,3.15]
[1764642760418,6.36261149,127.72,127.68,10.1993]
[1764642760710,3.12261149,127.71,127.69,0.05780026]
[1764642760913,3.29278442,127.72,127.69,0.05780026]
[1764642761113,0.05278442,127.72,127.7,3.15]
[1764642762217,3.29278442,127.72,127.69,7.10650026]
[1764642762909,10.33988442,127.72,127.69,0.05780026]
[1764642763113,6.36417564,127.71,127.69,0.05780026]
[1764642763310,3.24,127.71,127.69,0.05780026]
[1764642767118,6.36782078,127.7,127.69,0.05780026]
[1764642767423,6.36907404,127.7,127.69,0.05780026]
[1764642768624,3.12907404,127.7,127.69,0.05780026]
[1764642769609,3.29278442,127.72,127.69,0.05780026]
[1764642769814,6.3700959,127.71,127.69,0.05780026]
[1764642770021,3.24,127.71,127.69,0.05780026]
[1764642771018,0.05278442,127.72,127.69,10.25640026]
[1764642771220,0.05278442,127.72,127.7,3.15]
[1764642772224,0.05278442,127.72,127.7,10.198]
[1764642773518,0.05278442,127.72,127.71,3.15]
[1764642774118,3.18659776,127.72,127.71,3.15]
[1764642774322,3.18835416,127.72,127.71,3.15]
[1764642774912,0.05278442,127.72,127.71,3.15]
[1764642775922,0.05278442,127.72,127.7,7.048]
[1764642776124,0.05278442,127.72,127.7,10.198]
[1764642776925,0.05278442,127.72,127.71,3.15]
[1764642778729,3.1947071,127.72,127.71,3.15]
[1764642779028,3.19466357,127.72,127.71,3.15]
[1764642779223,0.05278442,127.72,127.71,3.15]
[1764642779429,6.43619763,127.72,127.69,5.53453886]
[1764642779624,0.05278442,127.72,127.7,3.15]
[1764642781026,0.05278442,127.72,127.71,5.4767386]
[1764642786729,3.24,127.78,127.74,3.15]
[1764642787032,3.13951933,127.77,127.75,3.15]
[1764642787232,3.24,127.78,127.75,3.15]
[1764642787526,3.13811184,127.77,127.75,3.15]
[1764642787732,0.05842838,127.77,127.75,3.20858726]
[1764642788034,0.05842838,127.77,127.75,10.25398726]
[1764642789031,0.05842838,127.77,127.76,3.12]
[1764642789236,7.0414,127.83,127.78,3.12]
[1764642789436,12.24247786,127.82,127.78,3.12]
[1764642789637,9.03247786,127.81,127.78,3.12]
[1764642789935,3.13531531,127.8,127.78,3.12]
[1764642790140,3.21,127.82,127.78,3.12]
[1764642790339,3.2629801,127.8,127.78,0.04944446]
[1764642790529,3.21,127.78,127.74,70.28]
[1764642791238,3.21,127.78,127.74,77.3259]
[1764642791432,0.05679629,127.77,127.75,0.05664298]
[1764642791634,0.05679629,127.77,127.75,3.17664298]
[1764642792034,3.26679629,127.77,127.75,0.05664298]
[1764642793345,0.05679629,127.77,127.76,3.12]
[1764642796242,3.21,127.84,127.8,3.12]
[1764642796546,3.21,127.84,127.81,3.12]
[1764642797135,3.1256265,127.83,127.78,3.12]
[1764642797343,3.21,127.81,127.79,0.0560646]
[1764642797546,3.21,127.81,127.79,0.05733404]
[1764642798846,6.3356932,127.8,127.79,0.05733404]
[1764642800444,3.21,127.79,127.76,7.0448]
[1764642801152,3.21,127.8,127.77,3.12]
[1764642801346,3.26594723,127.8,127.77,3.17785164]
[1764642803551,3.26594723,127.8,127.77,0.05785164]
[1764642803951,10.30904723,127.8,127.77,0.05785164]
[1764642804142,3.21,127.78,127.77,0.05785164]
[1764642804337,6.33939941,127.78,127.77,0.05785164]
[1764642805437,3.21,127.77,127.74,7.046]
[1764642805635,3.21,127.77,127.72,7.0468]
[1764642805834,3.13021137,127.76,127.72,10.1668]
[1764642806038,3.21,127.76,127.72,10.1668]
[1764642806445,0.05701291,127.75,127.73,3.1777192]
[1764642806647,0.05701291,127.75,127.74,3.12]
[1764642807948,3.26701291,127.75,127.73,7.1038192]
[1764642809753,0.05701291,127.75,127.73,10.2238192]
[1764642810555,0.05701291,127.75,127.74,3.12]
[1764642815150,7.3008434,127.82,127.76,3.12]
[1764642815355,3.21,127.8,127.76,3.12]
[1764642815659,3.09168205,127.79,127.76,3.12]
[1764642815853,3.21,127.8,127.76,3.12]
[1764642816047,3.14365439,127.79,127.77,3.17311056]
[1764642816257,0.05119285,127.79,127.77,3.17311056]
[1764642816446,3.26119285,127.79,127.77,0.05311056]
[1764642816654,3.0926183,127.78,127.77,0.05311056]
[1764642816856,3.0925311,127.78,127.77,0.05311056]
[1764642817760,6.2625311,127.78,127.77,0.05311056]
[1764642818762,3.17,127.78,127.77,0.05311056]
[1764642818957,7.82274865,127.78,127.77,0.05311056]
[1764642819160,3.35,127.77,127.71,3.15]
[1764642819352,3.35,127.75,127.71,3.15]
[1764642819553,3.35,127.75,127.72,7.0466]
[1764642819755,3.35,127.77,127.72,3.15]
[1764642819950,3.09353215,127.76,127.73,3.15]
[1764642820160,0.05864159,127.76,127.73,3.20862662]
[1764642821055,0.05864159,127.76,127.75,3.15]
[1764642821268,3.35,127.8,127.76,3.15]
[1764642821458,8.99075885,127.79,127.76,3.15]
[1764642821762,3.35,127.8,127.76,3.15]
[1764642821961,3.0940384,127.79,127.76,3.15]
[1764642822168,7.3008434,127.83,127.78,3.15]
[1764642822169,3.35,127.82,127.78,3.15]
[1764642822351,9.0473901,127.81,127.79,0.05332599]
[1764642822550,3.09388001,127.8,127.79,3.20332599]
[1764642823170,0.05706072,127.81,127.79,3.20332599]
[1764642823466,3.09424438,127.8,127.79,3.20332599]
[1764642824063,0.05706072,127.81,127.79,3.20332599]
[1764642825465,3.08061455,127.8,127.79,3.20332599]
[1764642826873,3.08061455,127.8,127.79,0.05332599]
[1764642827169,6.43061455,127.8,127.79,0.05332599]
[1764642829173,12.3285125,127.8,127.79,0.05332599]
[1764642831074,12.3285125,127.8,127.74,67.16]
[1764642831075,3.35,127.79,127.74,70.31]
[1764642831281,3.35,127.77,127.74,70.31]
[1764642831485,3.35,127.77,127.75,3.15]
[1764642831676,3.35,127.8,127.75,3.15]
[1764642831871,3.35,127.78,127.75,3.15]
[1764642832074,3.35,127.78,127.76,0.05773085]
[1764642832273,10.6508434,127.82,127.78,3.15]
[1764642832476,10.6508434,127.85,127.79,112.7092]
[1764642832677,12.33216879,127.84,127.8,3.15]
[1764642832878,8.98216879,127.83,127.8,3.15]
[1764642833078,8.96678748,127.82,127.8,3.15]
[1764642833275,0.05835537,127.82,127.8,3.20184204]
[1764642833683,0.05835537,127.82,127.8,10.24444204]
[1764642834378,3.40835537,127.82,127.8,7.09444204]
[1764642834677,3.40835537,127.82,127.8,0.05184204]
[1764642834985,3.40835537,127.82,127.74,3.63606656]
[1764642834986,3.35,127.8,127.74,112.7491]
[1764642835188,12.31267011,127.79,127.75,3.15]
[1764642835481,6.43116609,127.78,127.76,7.0449]
[1764642835685,3.35,127.78,127.75,3.15]
[1764642835984,3.08132082,127.77,127.75,3.20105]
[1764642836187,3.4016398,127.78,127.75,3.20105]
[1764642836386,3.08135645,127.77,127.75,3.20105]
[1764642836591,3.4016398,127.78,127.75,10.24635]
[1764642836785,3.08135667,127.77,127.75,10.24635]
[1764642837084,3.4016398,127.78,127.75,10.24635]
[1764642837285,3.08153856,127.77,127.75,10.24635]
[1764642837486,3.4016398,127.78,127.75,10.24635]
[1764642837689,3.08153856,127.77,127.75,10.24635]
[1764642837884,3.4016398,127.78,127.75,10.24635]
[1764642838079,6.43153856,127.77,127.75,0.05105]
[1764642838280,3.35,127.77,127.75,0.05105]
[1764642838485,0.0516398,127.78,127.75,10.24635]
[1764642838691,8.96618642,127.77,127.75,10.24635]
[1764642838880,3.4016398,127.78,127.75,10.24635]
[1764642839078,8.96622362,127.77,127.75,10.24635]
[1764642839278,3.4016398,127.78,127.75,10.24635]
[1764642839582,12.31603522,127.77,127.75,7.09635]
[1764642839784,3.35,127.77,127.75,7.09635]
[1764642840402,0.0516398,127.78,127.75,10.24635]
[1764642840689,3.08157594,127.77,127.76,3.15]
[1764642841098,0.0516398,127.78,127.77,7.0443]
[1764642841282,0.0516398,127.78,127.77,10.1943]
[1764642843390,7.0409,127.84,127.77,10.1943]
[1764642843391,3.35,127.84,127.8,3.15]
[1764642843595,8.95885117,127.83,127.8,3.15]
[1764642843791,3.08144094,127.82,127.8,3.15]
[1764642843998,3.35,127.84,127.8,3.15]
[1764642844292,8.95880948,127.83,127.8,3.15]
[1764642844485,0.05929723,127.83,127.81,7.09123833]
[1764642845192,3.40929723,127.83,127.81,7.09123833]
[1764642845395,6.41034259,127.82,127.81,0.04943833]
[1764642845998,12.28510658,127.82,127.81,0.04943833]
[1764642848896,3.13,127.81,127.75,109.5939]
[1764642849100,3.13,127.79,127.76,10.2345]
[1764642849700,3.13,127.77,127.74,10.2356]
[1764642849897,3.18625278,127.77,127.75,3.19]
[1764642850092,0.05625278,127.77,127.75,3.19]
[1764642851298,0.05625278,127.77,127.75,10.2353]
[1764642851700,0.05625278,127.77,127.76,3.19]
[1764642854696,0.05625278,127.77,127.75,12.56310529]
[1764642856208,0.05625278,127.77,127.76,3.19]
[1764642856409,7.29839494,127.82,127.77,7.044]
[1764642856598,12.07300655,127.81,127.78,3.19]
[1764642856799,8.94300655,127.8,127.78,3.19]
[1764642857001,3.06274187,127.79,127.78,3.19]
[1764642857906,0.05223581,127.8,127.78,10.2336]
[1764642859506,0.05223581,127.8,127.79,3.37]
[1764642859700,0.05223581,127.8,127.79,5.69780529]
[1764642860103,6.25508302,127.8,127.77,72.8887781]
[1764642860297,3.0630251,127.79,127.77,72.8887781]
[1764642860498,3.19223581,127.8,127.77,70.56097281]
[1764642861309,3.19223581,127.8,127.78,3.37]
[1764642861608,0.05223581,127.8,127.78,3.37]
[1764642862505,3.19223581,127.8,127.77,0.05097281]
[1764642862707,12.08442438,127.79,127.77,0.05097281]
[1764642862905,3.06312405,127.78,127.77,0.05097281]
[1764642864209,3.06312405,127.78,127.77,3.42097281]
[1764642864405,0.05223581,127.8,127.77,3.42097281]
[1764642864610,8.94593675,127.79,127.77,3.42097281]
[1764642864912,3.19223581,127.8,127.77,3.42097281]
[1764642865110,8.94593675,127.79,127.77,3.42097281]
[1764642865300,3.19223581,127.8,127.77,10.46517281]
[1764642865503,8.94747007,127.79,127.77,10.46517281]
[1764642865704,3.19223581,127.8,127.77,10.46517281]
[1764642865905,8.94747007,127.79,127.77,10.46517281]
[1764642866105,3.19223581,127.8,127.77,10.46517281]
[1764642866304,8.94766509,127.79,127.77,10.46517281]
[1764642866500,3.19223581,127.8,127.77,10.46517281]
[1764642866705,3.19223581,127.8,127.78,3.37]
[1764642866706,3.06460538,127.79,127.78,3.37]
[1764642867213,0.05223581,127.8,127.79,3.37]
[1764642868915,3.14,127.84,127.81,3.37]
[1764642869117,8.94529046,127.83,127.81,3.37]
[1764642869313,3.06400851,127.82,127.81,3.37]
[1764642871215,7.30275872,127.86,127.83,3.37]
[1764642871519,5.87679907,127.85,127.83,3.37]
[1764642871709,3.14,127.87,127.83,3.37]
[1764642871908,5.87395791,127.86,127.83,3.37]
[1764642872108,5.87395791,127.85,127.83,3.37]
[1764642872307,0.05811682,127.86,127.83,10.4648797]
[1764642872510,5.87186809,127.85,127.84,3.37]
[1764642873410,0.05811682,127.86,127.84,3.37]
[1764642874615,9.00824328,127.85,127.83,0.0541797]
[1764642874814,0.05811682,127.86,127.83,0.0541797]
[1764642874815,9.00861122,127.84,127.83,0.0541797]
[1764642877918,3.14,127.83,127.76,3.37]
[1764642878224,3.14,127.81,127.76,3.37]
[1764642878413,9.12861122,127.8,127.76,3.37]
[1764642878614,3.26,127.8,127.76,3.37]
[1764642878911,3.26,127.8,127.77,10.44848615]
[1764642878912,0.05258041,127.79,127.77,10.44848615]
[1764642880018,0.05258041,127.79,127.78,3.36]
[1764642887023,3.23258041,127.79,127.77,0.05428615]
[1764642889623,0.05258041,127.79,127.78,3.36]
[1764642889823,3.09077972,127.79,127.78,3.36]
[1764642890524,3.09077972,127.79,127.77,10.45848615]
[1764642890720,3.23258041,127.79,127.77,0.05428615]
[1764642891018,3.03839742,127.78,127.77,0.05428615]
[1764642891225,3.03848822,127.78,127.77,0.05428615]
[1764642892025,3.23258041,127.79,127.77,0.05428615]
[1764642892828,6.21828459,127.78,127.77,0.05428615]
[1764642893423,3.18,127.77,127.72,7.0466]
[1764642893620,8.91321154,127.78,127.72,10.4066]
[1764642893621,3.18,127.75,127.72,10.4066]
[1764642893816,3.18,127.73,127.7,67.12]
[1764642894128,8.91596308,127.72,127.69,3.36]
[1764642894427,3.2399174,127.72,127.69,3.41111773]
[1764642897729,3.2399174,127.72,127.69,0.05111773]
[1764642902331,3.2399174,127.72,127.69,3.41111773]
[1764642903430,3.2399174,127.72,127.69,0.05111773]
[1764642906331,3.2399174,127.72,127.69,3.41111773]
[1764642906833,3.2399174,127.72,127.69,12.78732302]
[1764642906834,0.0599174,127.72,127.69,12.78732302]
[1764642907033,0.0599174,127.72,127.7,3.36]
[1764642907535,0.0599174,127.72,127.7,10.4078]
[1764642907726,0.0599174,127.72,127.71,3.36]
[1764642909234,3.37,127.76,127.72,3.11]
[1764642909543,10.4145,127.77,127.72,3.11]
[1764642910042,3.37,127.77,127.73,3.11]
[1764642910221,0.05447135,127.76,127.74,3.16873059]
[1764642911924,0.05447135,127.76,127.74,10.21463059]
[1764642912229,0.05447135,127.76,127.75,3.11]
[1764642914039,0.05447135,127.76,127.74,7.10463059]
[1764642914237,3.42447135,127.76,127.74,0.05873059]
[1764642919254,10.46947135,127.76,127.74,0.05873059]
[1764642919454,3.37,127.75,127.74,0.05873059]
[1764642924867,3.42447135,127.76,127.74,0.05873059]
[1764642925361,0.05447135,127.76,127.74,10.21453059]
[1764642925569,3.37,127.79,127.75,3.11]
[1764642926361,3.37,127.79,127.75,10.1554]
[1764642926564,0.04956878,127.78,127.75,10.1554]
[1764642926765,0.04956878,127.78,127.76,3.11]
[1764642931069,0.04956878,127.78,127.76,10.1548]
[1764642932262,0.04956878,127.78,127.74,0.05873059]
[1764642932263,3.41956878,127.78,127.74,7.10433059]
[1764642932461,0.04956878,127.78,127.75,3.11]
[1764642933364,0.04956878,127.78,127.76,3.11]
[1764642934468,3.0637673,127.77,127.74,3.36873059]
[1764642934664,3.13,127.76,127.74,3.36873059]
[1764642934872,3.13,127.76,127.74,0.05873059]
[1764642935468,6.18591566,127.75,127.74,0.05873059]
[1764642935666,3.13,127.75,127.74,0.05873059]
[1764642935866,6.18611003,127.75,127.74,0.05873059]
[1764642936063,3.17956878,127.78,127.74,3.36873059]
[1764642937174,0.04956878,127.78,127.74,3.36873059]
[1764642937374,0.04956878,127.78,127.76,3.31]
[1764642937674,3.17956878,127.78,127.76,3.31]
[1764642938066,3.17956878,127.78,127.75,10.3553]
[1764642940776,8.93258065,127.77,127.74,0.05873059]
[1764642940977,12.05355581,127.76,127.74,0.05873059]
[1764642941178,12.05437678,127.75,127.74,0.05873059]
[1764642941672,3.12,127.74,127.7,3.22]
[1764642942675,6.23111909,127.73,127.71,0.05518741]
[1764642942882,3.17384041,127.73,127.71,0.05518741]
[1764642944383,3.12,127.72,127.71,0.05518741]
[1764642945076,8.93912912,127.72,127.67,7.0494]
[1764642945281,3.12,127.7,127.66,3.22]
[1764642945682,184.04549274,127.74,127.66,3.22]
[1764642945683,3.12,127.73,127.66,3.22]
[1764642945883,12.05813431,127.72,127.66,3.22]
[1764642946184,0.05939929,127.7,127.68,3.27332941]
[1764642947783,3.17939929,127.7,127.68,0.05332941]
[1764642947979,3.17939929,127.7,127.68,3.27332941]
[1764642948283,0.05939929,127.7,127.68,3.27332941]
[1764642952381,0.05939929,127.7,127.68,10.32242941]
[1764642952586,0.05939929,127.7,127.69,3.22]
[1764642960886,3.12,127.77,127.7,3.22]
[1764642961086,8.93001909,127.76,127.7,3.22]
[1764642961388,3.12,127.77,127.7,3.22]
[1764642961593,8.9289464,127.76,127.7,3.22]
[1764642961777,3.12,127.77,127.7,3.22]
[1764642961977,3.12,127.77,127.73,3.22]
[1764642961978,0.05296893,127.74,127.73,3.22]
[1764642963392,7.0452,127.76,127.73,3.22]
[1764642964494,7.10373836,127.76,127.73,3.22]
[1764642965388,0.05853836,127.76,127.73,10.2664]
[1764642965693,0.05853836,127.76,127.74,3.22]
[1764642967603,3.12,127.81,127.75,3.22]
[1764642967798,3.12,127.79,127.75,3.22]
[1764642968094,12.03066262,127.78,127.75,3.22]
[1764642968299,3.12,127.78,127.75,3.22]
[1764642968502,3.17239207,127.78,127.75,3.2751826]
[1764642968701,10.21629207,127.78,127.75,3.2751826]
[1764642969004,3.32,127.75,127.7,3.13]
[1764642969395,3.32,127.73,127.67,3.13]
[1764642969593,3.04118441,127.72,127.67,3.13]
[1764642969793,3.32,127.71,127.67,3.13]
[1764642969993,0.05095817,127.7,127.68,3.18121243]
[1764642971394,3.37095817,127.7,127.68,0.05121243]
[1764642971596,7.00815834,127.7,127.68,0.05121243]
[1764642971797,3.32,127.68,127.64,67.16]
[1764642972194,3.04063264,127.67,127.62,3.13]
[1764642972395,3.32,127.66,127.62,3.13]
[1764642972699,0.05550093,127.65,127.63,0.05065009]
[1764642974998,2.33268081,127.67,127.63,0.05065009]
[1764642975210,2.33268081,127.67,127.63,3.18065009]
[1764642975399,7.0491,127.69,127.63,0.05065009]
[1764642975705,9.38218081,127.68,127.63,0.05065009]
[1764642975907,0.05692876,127.67,127.63,0.05065009]
[1764642976409,2.33268081,127.66,127.63,0.05065009]
[1764642976609,2.33268081,127.64,127.63,0.05065009]
[1764642976801,2.33268081,127.66,127.63,0.05065009]
[1764642977005,3.32,127.65,127.63,0.05065009]
[1764642979404,3.32,127.66,127.63,3.18065009]
[1764642979603,3.32,127.66,127.63,0.05065009]
[1764642981307,3.32,127.66,127.63,3.18065009]
[1764642983103,0.05692876,127.67,127.63,3.18065009]
[1764642983509,0.05692876,127.67,127.65,3.13]
[1764642984403,0.05692876,127.67,127.66,3.13]
[1764642988410,0.05692876,127.67,127.65,10.1806]
[1764642989814,0.05692876,127.67,127.66,3.13]
[1764642990510,0.05692876,127.67,127.65,10.2306]
[1764642990809,0.05692876,127.67,127.65,3.18]
[1764642991015,3.43692876,127.67,127.63,0.05065009]
[1764642991814,3.38,127.65,127.63,0.05065009]
[1764642992610,3.38,127.65,127.63,3.23065009]
[1764642992915,0.05692876,127.67,127.64,3.18]
[1764642993416,0.05692876,127.67,127.66,3.18]
[1764642994211,7.0474,127.72,127.66,3.18]
[1764642994212,3.38,127.73,127.68,7.0491]
[1764642994411,12.26583813,127.72,127.69,3.18]
[1764642994617,3.38,127.72,127.69,3.18]
[1764642995021,2.33268081,127.73,127.66,9.38278081]
[1764642995022,3.38,127.7,127.66,3.18]
[1764642995209,3.38,127.7,127.67,0.05893893]
[1764642995408,0.05319572,127.69,127.67,3.23893893]
[1764642995710,0.05386007,127.69,127.67,3.23204991]
[1764642996113,0.05386007,127.69,127.67,10.28154991]
[1764642996313,0.05386007,127.69,127.68,3.18]
[1764642997920,3.43386007,127.69,127.67,7.10154991]
[1764642998111,3.43386007,127.69,127.67,10.28154991]
[1764642998420,0.05386007,127.69,127.67,10.28154991]
[1764643000420,0.05386007,127.69,127.68,3.29]
[1764643014436,7.29159681,127.76,127.71,3.29]
[1764643014631,70.42,127.79,127.74,3.29]
[1764643014836,19.19332904,127.78,127.74,3.29]
[1764643015038,3.24,127.78,127.74,3.29]
[1764643015338,0.0531215,127.77,127.76,3.29]
[1764643015523,0.05190789,127.78,127.76,3.29]
[1764643015730,0.05190789,127.78,127.76,3.34887639]
[1764643016241,3.29190789,127.78,127.76,3.34887639]
[1764643016440,3.29190789,127.78,127.76,0.05887639]
[1764643017449,10.33610789,127.78,127.76,0.05887639]
[1764643017638,9.10088917,127.77,127.76,0.05887639]
[1764643018140,3.24,127.77,127.76,0.05887639]
[1764643019042,6.27120914,127.77,127.76,0.05887639]
[1764643019243,3.03120914,127.77,127.76,0.05887639]
[1764643019449,3.29190789,127.78,127.76,0.05887639]
[1764643021641,8.86958969,127.77,127.72,67.16]
[1764643021841,3.24,127.75,127.72,70.45]
[1764643022047,3.24,127.75,127.71,3.29]
[1764643022540,0.06003594,127.74,127.72,0.05527407]
[1764643022851,0.06003594,127.74,127.72,3.34527407]
[1764643023444,3.30003594,127.74,127.72,3.34527407]
[1764643023646,3.30003594,127.74,127.72,0.05527407]
[1764643024950,3.24,127.73,127.72,0.05527407]
[1764643025550,9.08757787,127.73,127.72,0.05527407]
[1764643025854,12.11388246,127.73,127.72,0.05527407]
[1764643026751,3.24,127.71,127.69,2.33268081]
[1764643027048,3.24,127.71,127.67,5.62268081]
[1764643027753,3.29329372,127.7,127.68,0.05729887]
[1764643028853,0.05329372,127.7,127.69,5.67268081]
[1764643029358,0.05329372,127.7,127.69,2.33268081]
[1764643029844,0.05329372,127.7,127.68,0.05729887]
[1764643029845,3.21329372,127.7,127.68,0.05729887]
[1764643031048,10.26159372,127.7,127.68,0.05729887]
[1764643031252,3.16,127.69,127.68,0.05729887]
[1764643031460,6.1902715,127.69,127.68,0.05729887]
[1764643031961,0.05329372,127.7,127.68,3.39729887]
[1764643032360,0.05329372,127.7,127.69,2.33268081]
[1764643034366,0.05329372,127.7,127.68,3.39729887]
[1764643035258,3.21329372,127.7,127.68,0.05729887]
[1764643035768,0.05329372,127.7,127.69,3.34]
[1764643042674,0.05329372,127.7,127.68,3.39729887]
[1764643042876,3.21329372,127.7,127.68,3.39729887]
[1764643043174,0.05329372,127.7,127.68,3.39729887]
[1764643044165,3.21329372,127.7,127.68,0.05729887]
[1764643044382,12.05797013,127.69,127.68,0.05729887]
[1764643047377,3.16,127.67,127.62,14.03318637]
[1764643047672,3.16,127.67,127.62,10.3922]
[1764643048378,109.6485,127.69,127.63,3.39037596]
[1764643048379,3.21570204,127.66,127.63,3.39037596]
[1764643049975,3.16,127.65,127.63,0.05037596]
[1764643052980,10.2112,127.65,127.63,0.05037596]
[1764643055075,3.07,127.64,127.58,3.11]
[1764643055280,3.07,127.62,127.58,3.11]
[1764643055788,3.07,127.61,127.58,3.11]
[1764643056273,3.12547112,127.61,127.58,3.16087076]
[1764643056476,3.07,127.6,127.55,3.11]
[1764643057475,3.07,127.59,127.55,3.11]
[1764643057681,0.05110142,127.58,127.56,3.16427351]
[1764643059879,0.05110142,127.58,127.57,3.38]
[1764643060582,0.05110142,127.58,127.56,10.48967351]
[1764643061082,0.05110142,127.58,127.57,3.38]
[1764643063685,3.30110142,127.58,127.56,0.05427351]
[1764643067276,3.25,127.57,127.52,10.4378]
[1764643067486,3.25,127.55,127.49,3.38]
[1764643068289,3.25,127.55,127.51,0.058246]
[1764643068487,3.25,127.52,127.51,0.058246]
[1764643069286,3.25,127.52,127.47,3.38]
[1764643069287,3.25,127.51,127.47,3.38]
[1764643070175,3.30975374,127.5,127.48,0.0574601]
[1764643070891,0.05975374,127.5,127.48,3.4374601]
[1764643071490,0.05975374,127.5,127.49,3.38]
[1764643072789,0.05975374,127.5,127.48,0.0574601]
[1764643073093,0.05975374,127.5,127.48,3.4374601]
[1764643075489,0.05975374,127.5,127.48,10.4976601]
[1764643075692,0.05975374,127.5,127.49,3.38]
[1764643076489,3.25,127.55,127.51,3.38]
[1764643077588,0.05906567,127.54,127.52,3.43382625]
[1764643078100,0.05906567,127.54,127.52,70.67382625]
[1764643078301,0.05906567,127.54,127.53,3.38]
[1764643078502,3.25,127.58,127.53,3.38]
[1764643078697,70.45,127.61,127.53,3.38]
[1764643078895,6.24803484,127.6,127.53,3.38]
[1764643079097,2.99803484,127.59,127.53,3.38]
[1764643079291,10.3039,127.6,127.54,10.437]
[1764643079491,6.2485824,127.59,127.55,3.38]